lending/lending_fUSD_20240411
["ID","MTS","AMOUNT","RATE_DAILY","PERIOD"]
[322159932,1712859048550,-2531.46,0.00030136,2]
[322159933,1712859048561,-903.17,0.00030136,2]
[322159934,1712859048571,-837.83,0.00030136,2]
[322159935,1712859048581,-500.0,0.00030136,2]
[322159936,1712859048592,-930.72,0.00030136,2]
[322159937,1712859048602,-508.32390545,0.00030136,2]
[322159938,1712859048612,-1589.68,0.00030136,2]
[322159939,1712859048622,-1278.01,0.00030136,2]
[322159940,1712859048631,-1072.57,0.00030136,2]
[322159941,1712859048642,-500.0,0.00030136,2]
[322159942,1712859048651,-500.0,0.00030136,2]
[322159943,1712859048661,-500.0,0.00030136,2]
[322159944,1712859048672,-500.0,0.00030136,2]
[322159945,1712859048682,-668.8,0.00030136,2]
[322159946,1712859048693,-1624.77,0.00030136,2]
[322159947,1712859048704,-500.0,0.00030136,2]
[322159948,1712859048714,-500.0,0.00030136,2]
[322159949,1712859048725,-844.8,0.00030136,2]
[322159950,1712859048735,-500.0,0.00030136,2]
[322159951,1712859048745,-639.12,0.00030136,2]
[322159952,1712859048755,-1321.77,0.00030136,2]
[322159953,1712859048765,-500.0,0.00030136,2]
[322159954,1712859048775,-1961.47,0.00030136,2]
[322159955,1712859048785,-500.0,0.00030136,2]
[322159956,1712859048796,-500.0,0.00030136,2]
[322159957,1712859048806,-500.0,0.00030136,2]
[322159958,1712859048814,-748.27,0.00030136,2]
[322159959,1712859048823,-500.0,0.00030136,2]
[322159960,1712859048833,-500.0,0.00030136,2]
[322159961,1712859048842,-500.0,0.00030136,2]
[322159962,1712859048851,-1340.44,0.00030136,2]
[322159963,1712859048861,-500.0,0.00030136,2]
[322159964,1712859048870,-716.42,0.00030136,2]
[322159965,1712859048880,-1090.05,0.00030136,2]
[322159966,1712859048890,-1393.71,0.00030136,2]
[322159967,1712859048900,-500.0,0.00030136,2]
[322159968,1712859048910,-500.0,0.00030136,2]
[322159969,1712859048919,-500.0,0.00030136,2]
[322159970,1712859048928,-533.63,0.00030136,2]
[322159971,1712859048937,-500.0,0.00030136,2]
[322159972,1712859048946,-500.0,0.00030136,2]
[322159973,1712859048955,-533.47,0.00030136,2]
[322159974,1712859048964,-500.0,0.00030136,2]
[322159975,1712859048973,-500.0,0.00030136,2]
[322159976,1712859048983,-729.46,0.00030136,2]
[322159977,1712859048992,-500.0,0.00030136,2]
[322159978,1712859049001,-500.0,0.00030136,2]
[322159979,1712859049010,-1456.05,0.00030136,2]
[322159980,1712859049019,-842.34,0.00030136,2]
[322159981,1712859049028,-1711.02,0.00030136,2]
[322159982,1712859049038,-500.0,0.00030136,2]
[322159983,1712859049049,-3334.05,0.00030136,2]
[322159984,1712859049058,-500.0,0.00030136,2]
[322159985,1712859049067,-500.0,0.00030136,2]
[322159986,1712859049076,-641.76,0.00030136,2]
[322159987,1712859049085,-503.26,0.00030136,2]
[322159988,1712859049094,-511.51,0.00030136,2]
[322159989,1712859049104,-696.95,0.00030136,2]
[322159990,1712859049114,-309.50351942,0.00030136,2]
[322159991,1712859049126,-500.0,0.00030136,2]
[322159992,1712859049135,-500.0,0.00030136,2]
[322159993,1712859049145,-2431.11,0.00030136,2]
[322159994,1712859049155,-500.0,0.00030136,2]
[322159995,1712859049164,-500.0,0.00030136,2]
[322159996,1712859049174,-500.0,0.00030136,2]
[322159997,1712859049183,-598.96,0.00030136,2]
[322159998,1712859049194,-664.6,0.00030136,2]
[322159999,1712859049204,-517.63227798,0.00030136,2]
[322160000,1712859049214,-500.0,0.00030136,2]
[322160001,1712859049223,-500.0,0.00030136,2]
[322160002,1712859049232,-1481.43,0.00030136,2]
[322160003,1712859049241,-1829.47,0.00030136,2]
[322160004,1712859049251,-500.0,0.00030136,2]
[322160005,1712859049260,-500.0,0.00030136,2]
[322160006,1712859049269,-1108.78,0.00030136,2]
[322160007,1712859049279,-500.0,0.00030136,2]
[322160008,1712859049289,-681.97,0.00030136,2]
[322160009,1712859049300,-500.0,0.00030136,2]
[322160010,1712859049310,-1365.21,0.00030136,2]
[322160011,1712859049319,-500.0,0.00030136,2]
[322160012,1712859049328,-500.0,0.00030136,2]
[322160013,1712859049338,-500.0,0.00030136,2]
[322160014,1712859049347,-1177.76,0.00030136,2]
[322160015,1712859049357,-929.75,0.00030136,2]
[322160016,1712859049367,-500.0,0.00030136,2]
[322160017,1712859049376,-500.0,0.00030136,2]
[322160018,1712859049386,-500.0,0.00030136,2]
[322160019,1712859049395,-865.85,0.00030136,2]
[322160020,1712859049405,-269.30017314,0.00030136,2]
[322160021,1712859049414,-197.36,0.00030136,2]
[322160022,1712859049424,-500.0,0.00030136,2]
[322160023,1712859049434,-500.0,0.00030136,2]
[322160024,1712859049443,-1216.74,0.00030136,2]
[322160025,1712859049452,-544.05,0.00030136,2]
[322160026,1712859049461,-1496.85,0.00030136,2]
[322160027,1712859049471,-500.0,0.00030136,2]
[322160028,1712859049481,-805.94,0.00030136,2]
[322160029,1712859049490,-500.0,0.00030136,2]
[322160030,1712859049499,-300.0,0.00030136,2]
[322160031,1712859049508,-2427.79,0.00030136,2]
[322160032,1712859049518,-500.0,0.00030136,2]
[322160033,1712859049527,-500.0,0.00030136,2]
[322160034,1712859049536,-694.62,0.00030136,2]
[322160035,1712859049548,-673.38,0.00030136,2]
[322160036,1712859049557,-337.66302514,0.00030136,2]
[322160037,1712859049566,-500.0,0.00030136,2]
[322160038,1712859049575,-500.0,0.00030136,2]
[322160039,1712859049584,-500.0,0.00030136,2]
[322160040,1712859049593,-1349.51,0.00030136,2]
[322160041,1712859049602,-500.0,0.00030136,2]
[322160042,1712859049611,-670.98,0.00030136,2]
[322160043,1712859049620,-500.0,0.00030136,2]
[322160044,1712859049630,-2143.58,0.00030136,2]
[322160045,1712859049639,-500.0,0.00030136,2]
[322160046,1712859049647,-500.0,0.00030136,2]
[322160047,1712859049656,-500.0,0.00030136,2]
[322160048,1712859049665,-500.0,0.00030136,2]
[322160049,1712859049674,-500.0,0.00030136,2]
[322160050,1712859049683,-608.4,0.00030136,2]
[322160051,1712859049692,-1179.6,0.00030136,2]
[322160052,1712859049702,-500.0,0.00030136,2]
[322160053,1712859049711,-1065.17,0.00030136,2]
[322160054,1712859049720,-500.0,0.00030136,2]
[322160055,1712859049730,-500.0,0.00030136,2]
[322160056,1712859049739,-1486.92,0.00030136,2]
[322160057,1712859049749,-538.92002619,0.00030136,2]
[322160058,1712859049758,-500.0,0.00030136,2]
[322160059,1712859049768,-1467.09,0.00030136,2]
[322160060,1712859049778,-522.54042339,0.00030136,2]
[322160061,1712859049801,-500.0,0.00030136,2]
[322160062,1712859049810,-1650.91,0.00030136,2]
[322160063,1712859049821,-500.0,0.00030136,2]
[322160064,1712859049831,-500.0,0.00030136,2]
[322160065,1712859049840,-626.62,0.00030136,2]
[322160066,1712859049850,-500.0,0.00030136,2]
[322160067,1712859049860,-1059.58,0.00030136,2]
[322160068,1712859049869,-2622.25,0.00030136,2]
[322160069,1712859049879,-575.17,0.00030136,2]
[322160070,1712859049888,-345.84547178,0.00030136,2]
[322160071,1712859049898,-1575.07,0.00030136,2]
[322160072,1712859049907,-505.0,0.00030136,2]
[322160073,1712859049916,-500.0,0.00030136,2]
[322160074,1712859049926,-500.0,0.00030136,2]
[322160075,1712859049935,-729.95,0.00030136,2]
[322160076,1712859049945,-500.0,0.00030136,2]
[322160077,1712859049954,-799.93,0.00030136,2]
[322160078,1712859049963,-1782.91,0.00030136,2]
[322160079,1712859049972,-783.3,0.00030136,2]
[322160080,1712859049982,-604.9,0.00030136,2]
[322160081,1712859049991,-2061.76,0.00030136,2]
[322160082,1712859050001,-908.56,0.00030136,2]
[322160083,1712859050011,-539.83,0.00030136,2]
[322160084,1712859050020,-500.0,0.00030136,2]
[322160085,1712859050030,-377.90597377,0.00030136,2]
[322160086,1712859050041,-2661.96,0.00030136,2]
[322160087,1712859050051,-500.0,0.00030136,2]
[322160088,1712859050062,-572.21,0.00030136,2]
[322160089,1712859050072,-500.0,0.00030136,2]
[322160090,1712859050081,-2476.12,0.00030136,2]
[322160091,1712859050091,-153.104055,0.00030136,7]
[322160092,1712859050101,-858.12,0.00030136,2]
[322160093,1712859050111,-500.0,0.00030136,2]
[322160094,1712859050125,-500.0,0.00030136,2]
[322160095,1712859050134,-500.0,0.00030136,2]
[322160096,1712859050144,-1209.9,0.00030136,2]
[322160097,1712859050154,-500.0,0.00030136,2]
[322160098,1712859050165,-500.0,0.00030136,2]
[322160099,1712859050175,-500.0,0.00030136,2]
[322160100,1712859050185,-500.0,0.00030136,2]
[322160101,1712859050199,-500.0,0.00030136,2]
[322160102,1712859050209,-1262.22,0.00030136,2]
[322160103,1712859050220,-845.06,0.00030136,2]
[322160104,1712859050230,-500.0,0.00030136,2]
[322160105,1712859050240,-632.95,0.00030136,2]
[322160106,1712859050250,-533.67500314,0.00030136,2]
[322160107,1712859050260,-696.27,0.00030136,2]
[322160108,1712859050269,-2250.54,0.00030136,2]
[322160109,1712859050279,-500.0,0.00030136,2]
[322160110,1712859050290,-500.0,0.00030136,2]
[322160111,1712859050300,-500.0,0.00030136,2]
[322160112,1712859050310,-500.0,0.00030136,2]
[322160113,1712859050319,-500.0,0.00030136,2]
[322160114,1712859050329,-500.0,0.00030136,2]
[322160115,1712859050339,-500.0,0.00030136,2]
[322160116,1712859050349,-500.0,0.00030136,2]
[322160117,1712859050359,-500.0,0.00030136,2]
[322160118,1712859050369,-500.0,0.00030136,2]
[322160119,1712859050379,-1165.56,0.00030136,2]
[322160120,1712859050388,-624.2,0.00030136,2]
[322160121,1712859050398,-500.0,0.00030136,2]
[322160122,1712859050407,-545.64,0.00030136,2]
[322160123,1712859050418,-500.0,0.00030136,2]
[322160124,1712859050427,-3833.07,0.00030136,2]
[322160125,1712859050437,-1477.09,0.00030136,2]
[322160126,1712859050446,-12352.72,0.00030136,2]
[322160127,1712859050457,-500.0,0.00030136,2]
[322160128,1712859050468,-1477.33,0.00030136,2]
[322160129,1712859050478,-847.59,0.00030136,2]
[322160130,1712859050489,-151.0,0.00030136,7]
[322160131,1712859050499,-500.0,0.00030136,2]
[322160132,1712859050510,-500.0,0.00030136,2]
[322160133,1712859050522,-500.0,0.00030136,2]
[322160134,1712859050533,-1369.65,0.00030136,2]
[322160135,1712859050544,-1369.65,0.00030136,2]
[322160136,1712859050556,-500.0,0.00030136,2]
[322160137,1712859050567,-1369.65,0.00030136,2]
[322160138,1712859050577,-1369.65,0.00030136,2]
[322160139,1712859050588,-500.0,0.00030136,2]
[322160140,1712859050598,-500.0,0.00030136,2]
[322160141,1712859050609,-9040.26,0.00030136,2]
[322160142,1712859050620,-1369.65,0.00030136,2]
[322160143,1712859050629,-1369.65,0.00030136,2]
[322160144,1712859050639,-1369.65,0.00030136,2]
[322160145,1712859050650,-1369.65,0.00030136,2]
[322160146,1712859050661,-2393.71,0.00030136,2]
[322160147,1712859050671,-1369.65,0.00030136,2]
[322160148,1712859050682,-500.0,0.00030136,2]
[322160149,1712859050693,-1369.65,0.00030136,2]
[322160150,1712859050703,-3245.84,0.00030136,2]
[322160151,1712859050715,-500.0,0.00030136,2]
[322160152,1712859050725,-1369.65,0.00030136,2]
[322160153,1712859050736,-1369.65,0.00030136,2]
[322160154,1712859050747,-500.0,0.00030136,2]
[322160155,1712859050757,-2193.34,0.00030136,2]
[322160156,1712859050767,-500.0,0.00030136,2]
[322160157,1712859050778,-518.37511854,0.00030136,2]
[322160158,1712859050788,-500.0,0.00030136,2]
[322160159,1712859050798,-500.0,0.00030136,2]
[322160160,1712859050808,-1077.87,0.00030136,2]
[322160161,1712859050818,-500.0,0.00030136,2]
[322160162,1712859050828,-500.0,0.00030136,2]
[322160163,1712859050838,-500.0,0.00030136,2]
[322160164,1712859050848,-500.0,0.00030136,2]
[322160165,1712859050858,-500.0,0.00030136,2]
[322160166,1712859050869,-500.0,0.00030136,2]
[322160167,1712859050881,-713.62,0.00030136,2]
[322160168,1712859050891,-5084.56,0.00030136,2]
[322160169,1712859050902,-500.0,0.00030136,2]
[322160170,1712859050913,-500.0,0.00030136,2]
[322160171,1712859050924,-3527.81,0.00030136,2]
[322160172,1712859050934,-500.0,0.00030136,2]
[322160173,1712859050945,-500.0,0.00030136,2]
[322160174,1712859050955,-500.0,0.00030136,2]
[322160175,1712859050966,-1106.95,0.00030136,2]
[322160176,1712859050977,-500.0,0.00030136,2]
[322160177,1712859050988,-162.62459443,0.00030136,2]
[322160178,1712859050999,-750.19,0.00030136,2]
[322160179,1712859051010,-1614.95,0.00030136,2]
[322160180,1712859051020,-2036.24,0.00030136,2]
[322160181,1712859051031,-65722.89,0.00030136,2]
[322160182,1712859051042,-500.0,0.00030136,2]
[322160183,1712859051054,-500.0,0.00030136,2]
[322160184,1712859051065,-500.0,0.00030136,2]
[322160185,1712859051074,-500.0,0.00030136,2]
[322160186,1712859051084,-24123.09,0.00030136,2]
[322160187,1712859051094,-4300.48,0.00030136,2]
[322160188,1712859051105,-531.49247348,0.00030136,2]
[322160189,1712859051117,-500.0,0.00030136,2]
[322160190,1712859051129,-500.0,0.00030136,2]
[322160191,1712859051140,-7525.53,0.00030136,2]
[322160192,1712859051150,-585.64,0.00030136,2]
[322160193,1712859051162,-500.0,0.00030136,2]
[322160194,1712859051175,-500.0,0.00030136,2]
[322160195,1712859051188,-536.63,0.00030136,2]
[322160196,1712859051201,-4795.75,0.00030136,2]
[322160197,1712859051212,-500.0,0.00030136,2]
[322160198,1712859051223,-500.0,0.00030136,2]
[322160199,1712859051235,-500.0,0.00030136,2]
[322160200,1712859051246,-5036.37,0.00030136,2]
[322160201,1712859051257,-1591.4,0.00030136,2]
[322160202,1712859051268,-1640.53,0.00030136,2]
[322160203,1712859051278,-500.0,0.00030136,2]
[322160204,1712859051289,-4282.53,0.00030136,2]
[322160205,1712859051300,-500.0,0.00030136,2]
[322160206,1712859051312,-1488.03,0.00030136,2]
[322160207,1712859051323,-38218.43,0.00030136,2]
[322160208,1712859051333,-500.0,0.00030136,2]
[322160209,1712859051344,-15449.68,0.00030136,2]
[322160210,1712859051354,-500.0,0.00030136,2]
[322160211,1712859051363,-2705.31,0.00030136,2]
[322160212,1712859051373,-1879.85,0.00030136,2]
[322160213,1712859051382,-4715.22,0.00030136,2]
[322160214,1712859051391,-500.0,0.00030136,2]
[322160215,1712859051401,-500.0,0.00030136,2]
[322160216,1712859051411,-2098.07,0.00030136,2]
[322160217,1712859051421,-12465.72,0.00030136,2]
[322160218,1712859051430,-500.0,0.00030136,2]
[322160219,1712859051440,-644.62,0.00030136,2]
[322160220,1712859051450,-500.0,0.00030136,2]
[322160221,1712859051459,-1305.7,0.00030136,2]
[322160222,1712859051471,-500.0,0.00030136,2]
[322160223,1712859051481,-500.0,0.00030136,2]
[322160224,1712859051491,-3263.01,0.00030136,2]
[322160225,1712859051501,-500.0,0.00030136,2]
[322160226,1712859051510,-8542.83,0.00030136,2]
[322160227,1712859051520,-500.0,0.00030136,2]
[322160228,1712859051530,-500.0,0.00030136,2]
[322160229,1712859051541,-1279.61,0.00030136,2]
[322160230,1712859051552,-1717.11,0.00030136,2]
[322160231,1712859051562,-500.0,0.00030136,2]
[322160232,1712859051572,-506.43688678,0.00030136,2]
[322160233,1712859051582,-1221.83,0.00030136,2]
[322160234,1712859051593,-751.76,0.00030136,2]
[322160235,1712859051604,-1821.72,0.00030136,2]
[322160236,1712859051614,-500.0,0.00030136,2]
[322160237,1712859051625,-2438.22,0.00030136,2]
[322160238,1712859051636,-243.5634847,0.00030136,2]
[322160239,1712859051648,-500.0,0.00030136,2]
[322160240,1712859051659,-17826.69,0.00030136,2]
[322160241,1712859051670,-500.0,0.00030136,2]
[322160242,1712859051681,-500.0,0.00030136,2]
[322160243,1712859051692,-6901.08,0.00030136,2]
[322160244,1712859051703,-500.0,0.00030136,2]
[322160245,1712859051714,-500.0,0.00030136,2]
[322160246,1712859051724,-500.0,0.00030136,2]
[322160247,1712859051735,-1838.23,0.00030136,2]
[322160248,1712859051747,-500.0,0.00030136,2]
[322160249,1712859051759,-500.0,0.00030136,2]
[322160250,1712859051770,-3037.22,0.00030136,2]
[322160251,1712859051781,-500.0,0.00030136,2]
[322160252,1712859051792,-500.0,0.00030136,2]
[322160253,1712859051805,-192.16185736,0.00030136,2]
[322160254,1712859051816,-500.0,0.00030136,2]
[322160255,1712859051827,-8549.56,0.00030136,2]
[322160256,1712859051838,-4553.37,0.00030136,2]
[322160257,1712859051848,-534.49022012,0.00030136,2]
[322160258,1712859051859,-13404.35,0.00030136,2]
[322160259,1712859051869,-500.0,0.00030136,2]
[322160260,1712859051878,-500.0,0.00030136,2]
[322160261,1712859051888,-5336.78,0.00030136,2]
[322160262,1712859051897,-500.0,0.00030136,2]
[322160263,1712859051907,-500.0,0.00030136,2]
[322160264,1712859051916,-1425.12,0.00030136,2]
[322160265,1712859051926,-500.0,0.00030136,2]
[322160266,1712859051936,-500.0,0.00030136,2]
[322160267,1712859051948,-3958.02,0.00030136,2]
[322160268,1712859051961,-500.0,0.00030136,2]
[322160269,1712859051972,-1035.82,0.00030136,2]
[322160270,1712859051982,-4521.48,0.00030136,2]
[322160271,1712859051993,-3360.22,0.00030136,2]
[322160272,1712859052004,-2407.51,0.00030136,2]
[322160273,1712859052013,-500.0,0.00030136,2]
[322160274,1712859052024,-1632.2,0.00030136,2]
[322160275,1712859052035,-500.0,0.00030136,2]
[322160276,1712859052050,-500.0,0.00030136,2]
[322160277,1712859052060,-500.0,0.00030136,2]
[322160278,1712859052072,-2827.93,0.00030136,2]
[322160279,1712859052084,-4654.17,0.00030136,2]
[322160280,1712859052299,-874.05,0.00030136,2]
[322160281,1712859052311,-500.0,0.00030136,2]
[322160282,1712859052322,-2455.11,0.00030136,2]
[322160283,1712859052332,-992.84,0.00030136,2]
[322160284,1712859052343,-2526.46,0.00030136,2]
[322160285,1712859052353,-500.0,0.00030136,2]
[322160286,1712859052368,-1601.47,0.00030136,2]
[322160287,1712859052378,-1668.15,0.00030136,2]
[322160288,1712859052389,-500.0,0.00030136,2]
[322160289,1712859052400,-500.0,0.00030136,2]
[322160290,1712859052410,-1046.83,0.00030136,2]
[322160291,1712859052420,-3422.71,0.00030136,2]
[322160292,1712859052429,-7469.51,0.00030136,2]
[322160293,1712859052441,-511.67,0.00030136,2]
[322160294,1712859052450,-500.0,0.00030136,2]
[322160295,1712859052460,-753.83,0.00030136,2]
[322160296,1712859052471,-500.0,0.00030136,2]
[322160297,1712859052480,-3185.98,0.00030136,2]
[322160298,1712859052491,-8727.33,0.00030136,2]
[322160299,1712859052502,-607.05066119,0.00030136,2]
[322160300,1712859052512,-756.61,0.00030136,2]
[322160301,1712859052521,-5231.9,0.00030136,2]
[322160302,1712859052531,-500.0,0.00030136,2]
[322160303,1712859052540,-500.0,0.00030136,2]
[322160304,1712859052552,-522.02,0.00030136,2]
[322160305,1712859052561,-500.0,0.00030136,2]
[322160306,1712859052571,-4812.04,0.00030136,2]
[322160307,1712859052580,-849.21,0.00030136,2]
[322160308,1712859052590,-7952.03,0.00030136,2]
[322160309,1712859052599,-500.0,0.00030136,2]
[322160310,1712859052609,-500.0,0.00030136,2]
[322160311,1712859052618,-4606.97,0.00030136,2]
[322160312,1712859052628,-13348.08,0.00030136,2]
[322160313,1712859052637,-500.0,0.00030136,2]
[322160314,1712859052647,-2523.89,0.00030136,2]
[322160315,1712859052656,-500.0,0.00030136,2]
[322160316,1712859052666,-2182.0,0.00030136,2]
[322160317,1712859052675,-500.0,0.00030136,2]
[322160318,1712859052684,-2980.37,0.00030136,2]
[322160319,1712859052693,-500.0,0.00030136,2]
[322160320,1712859052703,-818.61,0.00030136,2]
[322160321,1712859052712,-500.0,0.00030136,2]
[322160322,1712859052722,-500.0,0.00030136,2]
[322160323,1712859052731,-2420.57,0.00030136,2]
[322160324,1712859052743,-2418.49,0.00030136,2]
[322160325,1712859052752,-32425.31,0.00030136,2]
[322160326,1712859052761,-500.0,0.00030136,2]
[322160327,1712859052771,-536.92,0.00030136,2]
[322160328,1712859052780,-500.0,0.00030136,2]
[322160329,1712859052789,-500.0,0.00030136,2]
[322160330,1712859052800,-873.01,0.00030136,2]
[322160331,1712859052809,-500.0,0.00030136,2]
[322160332,1712859052818,-522.73263,0.00030136,2]
[322160333,1712859052828,-2014.96,0.00030136,2]
[322160334,1712859052838,-500.0,0.00030136,2]
[322160335,1712859052848,-4189.39,0.00030136,2]
[322160336,1712859052858,-4001.71,0.00030136,2]
[322160337,1712859052869,-19215.45,0.00030136,2]
[322160338,1712859052879,-527.38,0.00030136,2]
[322160339,1712859052889,-7254.76,0.00030136,2]
[322160340,1712859052900,-500.0,0.00030136,2]
[322160341,1712859052909,-523.53,0.00030136,2]
[322160342,1712859052920,-3894.68,0.00030136,2]
[322160343,1712859052930,-527.31531261,0.00030136,2]
[322160344,1712859052946,-1119.24,0.00030136,2]
[322160345,1712859052957,-500.0,0.00030136,2]
[322160346,1712859052968,-1762.55,0.00030136,2]
[322160347,1712859052977,-500.0,0.00030136,2]
[322160348,1712859052987,-1510.83,0.00030136,2]
[322160349,1712859052998,-500.0,0.00030136,2]
[322160350,1712859053008,-1173.68,0.00030136,2]
[322160351,1712859053017,-1247.44,0.00030136,2]
[322160352,1712859053027,-2803.22,0.00030136,2]
[322160353,1712859053037,-4870.23,0.00030136,2]
[322160354,1712859053048,-500.0,0.00030136,2]
[322160355,1712859053059,-1315.97,0.00030136,2]
[322160356,1712859053069,-3669.57,0.00030136,2]
[322160357,1712859053078,-500.0,0.00030136,2]
[322160358,1712859053088,-1164.19,0.00030136,2]
[322160359,1712859053098,-277.11133044,0.00030136,2]
[322160360,1712859053107,-500.0,0.00030136,2]
[322160361,1712859053118,-500.0,0.00030136,2]
[322160362,1712859053131,-1149.14,0.00030136,2]
[322160363,1712859053141,-500.0,0.00030136,2]
[322160364,1712859053151,-500.0,0.00030136,2]
[322160365,1712859053162,-3128.6,0.00030136,2]
[322160366,1712859053172,-500.0,0.00030136,2]
[322160367,1712859053182,-500.0,0.00030136,2]
[322160368,1712859053192,-563.33275822,0.00030136,2]
[322160369,1712859053202,-2308.02,0.00030136,2]
[322160370,1712859053211,-2330.67,0.00030136,2]
[322160371,1712859053220,-500.0,0.00030136,2]
[322160372,1712859053229,-500.0,0.00030136,2]
[322160373,1712859053240,-24863.87,0.00030136,2]
[322160374,1712859053250,-1499.0,0.00030136,2]
[322160375,1712859053261,-1559.2,0.00030136,2]
[322160376,1712859053271,-2534.45,0.00030136,2]
[322160377,1712859053282,-5362.21,0.00030136,2]
[322160378,1712859053294,-3624.03,0.00030136,2]
[322160379,1712859053305,-500.0,0.00030136,2]
[322160380,1712859053315,-500.0,0.00030136,2]
[322160381,1712859053324,-7483.96,0.00030136,2]
[322160382,1712859053333,-990.63,0.00030136,2]
[322160383,1712859053343,-259.03325042,0.00030136,2]
[322160384,1712859053352,-500.0,0.00030136,2]
[322160385,1712859053362,-535.08757644,0.00030136,2]
[322160386,1712859053372,-500.0,0.00030136,2]
[322160387,1712859053381,-500.0,0.00030136,2]
[322160388,1712859053391,-500.0,0.00030136,2]
[322160389,1712859053401,-500.0,0.00030136,2]
[322160390,1712859053410,-500.0,0.00030136,2]
[322160391,1712859053421,-24426.79,0.00030136,2]
[322160392,1712859053432,-500.0,0.00030136,2]
[322160393,1712859053442,-5280.72,0.00030136,2]
[322160394,1712859053453,-633.11,0.00030136,2]
[322160395,1712859053463,-3975.7,0.00030136,2]
[322160396,1712859053473,-2169.06,0.00030136,2]
[322160397,1712859053484,-500.0,0.00030136,2]
[322160398,1712859053495,-500.0,0.00030136,2]
[322160399,1712859053507,-500.0,0.00030136,2]
[322160400,1712859053518,-9382.4,0.00030136,2]
[322160401,1712859053527,-1012.11,0.00030136,2]
[322160402,1712859053538,-7515.4,0.00030136,2]
[322160403,1712859053550,-500.0,0.00030136,2]
[322160404,1712859053559,-4835.96,0.00030136,2]
[322160405,1712859053568,-500.0,0.00030136,2]
[322160406,1712859053577,-500.0,0.00030136,2]
[322160407,1712859053587,-1736.38,0.00030136,2]
[322160408,1712859053596,-500.0,0.00030136,2]
[322160409,1712859053606,-500.0,0.00030136,2]
[322160410,1712859053616,-64944.18,0.00030136,2]
[322160411,1712859053625,-1254.87,0.00030136,2]
[322160412,1712859053635,-500.0,0.00030136,2]
[322160413,1712859053645,-2414.5,0.00030136,2]
[322160414,1712859053656,-500.0,0.00030136,2]
[322160415,1712859053666,-500.0,0.00030136,2]
[322160416,1712859053676,-500.0,0.00030136,2]
[322160417,1712859053686,-3208.84,0.00030136,2]
[322160418,1712859053696,-500.0,0.00030136,2]
[322160419,1712859053706,-500.0,0.00030136,2]
[322160420,1712859053716,-500.0,0.00030136,2]
[322160421,1712859053726,-3757.19,0.00030136,2]
[322160422,1712859053736,-500.0,0.00030136,2]
[322160423,1712859053748,-500.0,0.00030136,2]
[322160424,1712859053758,-500.0,0.00030136,2]
[322160425,1712859053768,-3212.03,0.00030136,2]
[322160426,1712859053778,-1215.21,0.00030136,2]
[322160427,1712859053788,-23618.77,0.00030136,2]
[322160428,1712859053800,-500.0,0.00030136,2]
[322160429,1712859053810,-500.0,0.00030136,2]
[322160430,1712859053819,-500.0,0.00030136,2]
[322160431,1712859053829,-500.0,0.00030136,2]